bitfinex/quotes_BTCUSD_20250508
["timestamp","ask_amount","ask_price","bid_price","bid_amount"]
[1746663149799,0.31438257,97180.0,97179.0,0.06764116]
[1746663149999,0.31181005,97180.0,97179.0,0.06764116]
[1746663150949,0.31181005,97180.0,97179.0,0.06664116]
[1746663151555,0.31181005,97180.0,97179.0,0.06564116]
[1746663153488,0.31181005,97180.0,97179.0,0.01926759]
[1746663156775,0.21611795,97170.0,97167.0,0.34]
[1746663157081,0.20582708,97169.0,97168.0,0.00345404]
[1746663157440,0.20582708,97169.0,97167.0,0.34]
[1746663157671,0.20582708,97169.0,97168.0,0.00345404]
[1746663157860,0.20582708,97169.0,97167.0,0.34]
[1746663157861,0.20582708,97169.0,97167.0,0.35029155]
[1746663158066,0.20582708,97169.0,97167.0,0.13168718]
[1746663158268,0.20582708,97169.0,97168.0,0.00516621]
[1746663158447,0.20582708,97169.0,97168.0,0.002]
[1746663158784,0.20582708,97169.0,97168.0,0.01163582]
[1746663159210,0.20582708,97169.0,97168.0,0.01480203]
[1746663160009,0.21611788,97170.0,97168.0,0.01480203]
[1746663160212,0.21611788,97170.0,97168.0,0.01780203]
[1746663160380,0.20582696,97169.0,97168.0,0.04155572]
[1746663160686,0.20582696,97169.0,97168.0,0.01780203]
[1746663161092,0.20582696,97169.0,97168.0,0.01580203]
[1746663161566,0.20582696,97169.0,97168.0,0.01480203]
[1746663161775,0.21611788,97170.0,97168.0,0.01780203]
[1746663161981,0.21611788,97170.0,97168.0,0.01580203]
[1746663162224,0.21611788,97170.0,97168.0,0.01780203]
[1746663162647,0.21611788,97170.0,97169.0,0.00963582]
[1746663162874,0.21611788,97170.0,97169.0,0.01280901]
[1746663164853,0.21611788,97170.0,97169.0,0.01480901]
[1746663165063,0.21611788,97170.0,97169.0,0.01780901]
[1746663166559,0.21611392,97171.0,97169.0,0.01780901]
[1746663167480,0.21611392,97171.0,97169.0,0.00817319]
[1746663167684,0.21611392,97171.0,97169.0,0.00617319]
[1746663167890,0.21611392,97171.0,97169.0,0.00517319]
[1746663168112,0.20582484,97170.0,97169.0,0.00817319]
[1746663168989,0.20582484,97170.0,97169.0,0.00517319]
[1746663169187,0.20582484,97170.0,97169.0,0.02244916]
[1746663170025,0.20582484,97170.0,97169.0,0.02544916]
[1746663170570,0.20582484,97170.0,97169.0,0.02744916]
[1746663172240,0.17363624,97170.0,97169.0,0.02744916]
[1746663173469,0.17363624,97170.0,97169.0,0.07392895]
[1746663173815,0.17363624,97170.0,97169.0,0.42357026]
[1746663174457,0.17363624,97170.0,97169.0,0.23772046]
[1746663174717,0.17363624,97170.0,97169.0,0.00291403]
[1746663176223,0.21611392,97171.0,97169.0,0.00291403]
[1746663176421,0.21611204,97172.0,97169.0,0.20874099]
[1746663176858,0.21611204,97172.0,97169.0,0.00291403]
[1746663177034,0.20582484,97170.0,97169.0,0.00291403]
[1746663177246,0.23742484,97170.0,97169.0,0.00291403]
[1746663177442,0.23742484,97170.0,97168.0,0.02306892]
[1746663177443,0.20582696,97169.0,97168.0,0.02306892]
[1746663177645,0.20582907,97168.0,97167.0,0.00044919]
[1746663177812,0.23832907,97168.0,97167.0,0.00044919]
[1746663178422,0.23832907,97168.0,97167.0,0.00337277]
[1746663179973,0.23832907,97168.0,97167.0,0.04466915]
[1746663186883,0.23832907,97168.0,97167.0,0.06105108]
[1746663187128,0.23832907,97168.0,97167.0,0.0639759]
[1746663188942,0.23832907,97168.0,97167.0,0.04467039]
[1746663189165,0.23832907,97168.0,97167.0,0.06397566]
[1746663191651,0.23832907,97168.0,97167.0,0.06105084]
[1746663191852,0.34521921,97168.0,97167.0,0.01975446]
[1746663192610,0.34521921,97168.0,97167.0,0.06170628]
[1746663192848,0.34521921,97168.0,97167.0,0.01975394]
[1746663193055,0.34521921,97168.0,97167.0,0.06625556]
[1746663193410,0.34621921,97168.0,97167.0,0.06625556]
[1746663193648,0.31403028,97168.0,97167.0,0.04695081]
[1746663193851,0.31503028,97168.0,97167.0,0.04695081]
[1746663195251,0.31503028,97168.0,97167.0,0.066246]
[1746663196251,1.37835535,97168.0,97167.0,0.066246]
[1746663196697,1.37835535,97168.0,97167.0,0.04695081]
[1746663196907,1.37735535,97168.0,97167.0,0.04695081]
[1746663197332,1.3948962,97168.0,97167.0,0.00015081]
[1746663197552,1.3948962,97168.0,97152.0,0.01929519]
[1746663197553,0.5927017,97153.0,97152.0,0.01929519]
[1746663197777,0.69959184,97153.0,97152.0,0.01929519]
[1746663198126,0.69959184,97153.0,97131.0,0.004]
[1746663198127,0.57630594,97151.0,97131.0,0.004]
[1746663198326,0.69959608,97151.0,97131.0,0.004]
[1746663200596,0.71059608,97151.0,97150.0,0.003]
[1746663201103,0.72259608,97151.0,97150.0,0.004]
[1746663202371,1.40479608,97151.0,97150.0,0.004]
[1746663207458,1.38179608,97151.0,97150.0,0.002]
[1746663207672,1.39379608,97151.0,97150.0,0.003]
[1746663208266,1.40679608,97151.0,97150.0,0.004]
[1746663208465,1.50588014,97151.0,97150.0,0.004]
[1746663208747,1.40679608,97151.0,97150.0,0.004]
[1746663209348,1.41679608,97151.0,97150.0,0.004]
[1746663209491,1.40679608,97151.0,97150.0,0.004]
[1746663209692,1.41679608,97151.0,97150.0,0.004]
[1746663213531,1.39225523,97151.0,97150.0,0.004]
[1746663216088,1.40679608,97151.0,97150.0,0.004]
[1746663216829,1.39089608,97151.0,97150.0,0.004]
[1746663217062,1.40689608,97151.0,97150.0,0.004]
[1746663221729,1.51241637,97151.0,97150.0,0.004]
[1746663222787,1.40689608,97151.0,97150.0,0.004]
[1746663231703,1.39089608,97151.0,97150.0,0.004]
[1746663231913,1.40609608,97151.0,97150.0,0.004]
[1746663232466,1.39089608,97151.0,97150.0,0.004]
[1746663234424,1.40589608,97151.0,97150.0,0.004]
[1746663235056,1.39089608,97151.0,97150.0,0.004]
[1746663240935,1.37449608,97151.0,97150.0,0.004]
[1746663241142,1.01995523,97151.0,97150.0,0.0195]
[1746663241356,1.01995523,97151.0,97150.0,0.0355]
[1746663241974,1.01995523,97151.0,97150.0,0.05480338]
[1746663242186,1.00695523,97151.0,97150.0,0.05380338]
[1746663242615,1.00695523,97151.0,97150.0,0.05280338]
[1746663242616,1.00295523,97151.0,97150.0,0.05280338]
[1746663243023,0.99495523,97151.0,97150.0,0.05280338]
[1746663243426,0.99695523,97151.0,97150.0,0.05280338]
[1746663244936,0.99695523,97151.0,97150.0,0.09928485]
[1746663245464,0.96475707,97151.0,97150.0,0.09928485]
[1746663247195,0.96475707,97151.0,97150.0,0.05280338]
[1746663247308,0.28255707,97151.0,97150.0,0.05280338]
[1746663251999,0.28255707,97151.0,97150.0,0.0335]
[1746663253917,0.002,97151.0,97150.0,0.05280338]
[1746663254194,0.20786509,97151.0,97150.0,0.05280338]
[1746663254409,0.20786509,97151.0,97150.0,0.05585844]
[1746663255634,0.20786509,97151.0,97150.0,0.06349325]
[1746663257269,0.002,97151.0,97150.0,0.06349325]
[1746663257497,0.20786509,97151.0,97150.0,0.06349325]
[1746663257676,0.002,97151.0,97150.0,0.26936046]
[1746663260023,0.20786509,97151.0,97150.0,0.06349325]
[1746663261930,0.002,97151.0,97150.0,0.26936046]
[1746663262331,0.002,97151.0,97150.0,0.06349325]
[1746663263838,0.20786509,97151.0,97150.0,0.06349325]
[1746663264593,0.002,97151.0,97150.0,0.06349325]
[1746663266675,0.002,97151.0,97150.0,0.07310201]
[1746663267134,0.17566951,97152.0,97150.0,0.07310201]
[1746663267358,0.17566951,97152.0,97151.0,0.0321]
[1746663267560,0.17566951,97152.0,97151.0,0.05442333]
[1746663267943,0.17566951,97152.0,97151.0,0.06403209]
[1746663268448,0.17666951,97152.0,97151.0,0.06403209]
[1746663268785,0.17566951,97152.0,97151.0,0.06403209]
[1746663269453,0.17666951,97152.0,97151.0,0.06403209]
[1746663269684,0.001,97152.0,97151.0,0.26989718]
[1746663270732,0.002,97152.0,97151.0,0.26989718]
[1746663271149,0.002,97152.0,97151.0,0.76989718]
[1746663271743,0.001,97152.0,97151.0,0.76989718]
[1746663271867,0.002,97152.0,97151.0,0.76989718]
[1746663272222,0.001,97152.0,97151.0,0.76989718]
[1746663272432,0.01029198,97163.0,97162.0,0.0314]
[1746663272562,0.21612763,97165.0,97162.0,0.20584179]
[1746663272770,0.21612763,97165.0,97164.0,0.0306]
[1746663273139,0.21612763,97165.0,97164.0,0.03354478]
[1746663273741,0.21612763,97165.0,97164.0,0.05284816]
[1746663274240,0.21812763,97165.0,97164.0,0.06645692]
[1746663274614,0.002,97165.0,97164.0,0.27229447]
[1746663274773,0.001,97165.0,97164.0,0.27229447]
[1746663274977,0.002,97165.0,97164.0,0.27429447]
[1746663275779,0.002,97165.0,97164.0,0.06845692]
[1746663276579,0.002,97165.0,97164.0,0.05884816]
[1746663276899,0.002,97165.0,97164.0,0.26468571]
[1746663278689,0.20783543,97165.0,97164.0,0.05884816]
[1746663279811,0.002,97165.0,97164.0,0.05884816]
[1746663280235,0.20783543,97165.0,97164.0,0.05884816]
[1746663281021,0.002,97165.0,97164.0,0.05884816]
[1746663281178,0.20783543,97165.0,97164.0,0.05884816]
[1746663282759,0.20783543,97165.0,97164.0,0.06847811]
[1746663284183,0.20783543,97165.0,97164.0,0.11481745]
[1746663284561,0.20783543,97165.0,97164.0,0.09971745]
[1746663287481,0.17564692,97165.0,97164.0,0.09971745]
[1746663295090,4.486e-05,97168.0,97167.0,0.20583119]
[1746663295291,4.486e-05,97168.0,97167.0,0.0165]
[1746663295495,4.486e-05,97168.0,97167.0,0.03873849]
[1746663295824,4.486e-05,97168.0,97167.0,0.24456968]
[1746663296143,4.486e-05,97168.0,97167.0,0.25419963]
[1746663296346,0.00104486,97168.0,97167.0,0.27309963]
[1746663297202,0.00104486,97168.0,97167.0,0.27509963]
[1746663297203,0.00204486,97168.0,97167.0,0.27509963]
[1746663297800,0.00204486,97168.0,97167.0,0.32143897]
[1746663298003,0.00204486,97168.0,97167.0,0.30553897]
[1746663299020,0.00204486,97168.0,97167.0,0.29590902]
[1746663299563,0.00204486,97168.0,97167.0,0.09007783]
[1746663299793,0.00204486,97168.0,97167.0,0.29590902]
[1746663304222,0.00204486,97168.0,97167.0,0.31160902]
[1746663305300,0.00104486,97168.0,97167.0,0.30960902]
[1746663305450,0.00104486,97168.0,97167.0,0.80960902]
[1746663305653,0.20587393,97168.0,97167.0,0.56857783]
[1746663305834,0.00104486,97168.0,97167.0,0.57157783]
[1746663306179,0.00104486,97168.0,97167.0,0.77740902]
[1746663306765,0.00204486,97168.0,97167.0,0.77940902]
[1746663306976,0.00204486,97168.0,97167.0,0.27940902]
[1746663308404,0.00204486,97168.0,97167.0,0.07357783]
[1746663308748,0.00204486,97168.0,97167.0,0.27940902]
[1746663309268,0.00204486,97168.0,97167.0,0.07357783]
[1746663309443,0.00204486,97168.0,97167.0,0.27940902]
[1746663309662,0.00204486,97168.0,97167.0,0.07357783]
[1746663309849,0.17568678,97168.0,97167.0,0.07357783]
[1746663310058,0.20582761,97169.0,97167.0,0.07357783]
[1746663310206,0.20582761,97169.0,97167.0,0.07371251]
[1746663310407,0.20582761,97169.0,97168.0,0.01930338]
[1746663310611,0.20582761,97169.0,97168.0,0.02219749]
[1746663310822,0.21611629,97170.0,97168.0,0.02219749]
[1746663311232,0.20682696,97169.0,97168.0,0.02219749]
[1746663312571,0.20782696,97169.0,97168.0,0.02330338]
[1746663312973,0.20682696,97169.0,97168.0,0.02620518]
[1746663313366,0.20682696,97169.0,97168.0,0.02820518]
[1746663313931,0.20682696,97169.0,97168.0,0.02620518]
[1746663314262,0.20782696,97169.0,97168.0,0.02820518]
[1746663314798,0.20782696,97169.0,97168.0,0.07454452]
[1746663319494,0.20782696,97169.0,97168.0,0.07164272]
[1746663319721,0.20782696,97169.0,97168.0,0.07454297]
[1746663319955,0.20782696,97169.0,97168.0,0.07164272]
[1746663320078,0.20782696,97169.0,97168.0,0.07454297]
[1746663323140,0.20782696,97169.0,97168.0,0.08418775]
[1746663325764,0.20782696,97169.0,97168.0,0.07454297]
[1746663329664,0.002,97169.0,97168.0,0.07454297]
[1746663330121,0.20582696,97169.0,97168.0,0.07454297]
[1746663330324,0.0102906,97176.0,97168.0,0.07454297]
[1746663330525,0.20580789,97178.0,97177.0,0.0158]
[1746663330939,0.20580789,97178.0,97177.0,0.03510338]
[1746663331169,0.20580789,97178.0,97177.0,0.03799933]
[1746663332710,0.20580789,97178.0,97177.0,0.04099933]
[1746663333087,0.20580789,97178.0,97177.0,0.04199933]
[1746663333860,0.20580578,97179.0,97177.0,0.04199933]
[1746663334067,0.20578544,97189.0,97179.0,0.0163]
[1746663334266,0.20578544,97189.0,97177.0,0.07253867]
[1746663334267,0.01028975,97184.0,97183.0,0.0163]
[1746663334475,0.21607836,97187.0,97182.0,0.01028997]
[1746663334718,0.01028975,97184.0,97182.0,0.0154]
[1746663334924,0.2057982,97183.0,97182.0,0.0154]
[1746663335908,0.2057982,97183.0,97178.0,0.20580366]
[1746663335909,0.20580019,97182.0,97178.0,0.20580366]
[1746663336109,0.20580019,97182.0,97179.0,0.0153]
[1746663336314,0.21608806,97183.0,97179.0,0.22110378]
[1746663336516,0.21708806,97183.0,97182.0,0.004]
[1746663336829,0.21598806,97183.0,97182.0,0.02530338]
[1746663337030,0.21498806,97183.0,97182.0,0.03094429]
[1746663337236,0.21498806,97183.0,97182.0,0.02894429]
[1746663337237,0.1783149,97183.0,97182.0,0.02894429]
[1746663337818,0.17663504,97183.0,97182.0,0.07528363]
[1746663338028,0.17663504,97183.0,97182.0,0.06564272]
[1746663338230,0.17663504,97183.0,97182.0,0.10203644]
[1746663339273,0.17663504,97183.0,97182.0,0.10403644]
[1746663339853,0.17663504,97183.0,97182.0,0.10603644]
[1746663340047,0.17663504,97183.0,97182.0,0.10203644]
[1746663340646,0.17863504,97183.0,97182.0,0.10803644]
[1746663344306,0.17863504,97183.0,97182.0,0.11766903]
[1746663345486,0.17863504,97183.0,97182.0,0.10803644]
[1746663347640,0.17863504,97183.0,97182.0,0.11087121]
[1746663348525,0.17863504,97183.0,97182.0,0.10803644]
[1746663350469,0.17863504,97183.0,97182.0,0.11087121]
[1746663351027,0.17863504,97183.0,97182.0,0.10803644]
[1746663351541,0.14645146,97183.0,97182.0,0.10803644]
[1746663351796,0.288614,97183.0,97182.0,0.07164272]
[1746663352073,0.2860416,97183.0,97182.0,0.07164272]
[1746663352572,0.2850416,97183.0,97182.0,0.06564272]
[1746663352960,0.2850416,97183.0,97182.0,0.06964272]
[1746663353364,0.2850416,97183.0,97182.0,0.05033934]
[1746663353884,0.2840416,97183.0,97182.0,0.04733934]
[1746663354681,0.2840416,97183.0,97182.0,0.06664272]
[1746663355249,0.2850416,97183.0,97182.0,0.06864272]
[1746663356604,0.2850416,97183.0,97182.0,0.02230338]
[1746663357259,0.2850416,97183.0,97182.0,0.003]
[1746663357900,0.28194361,97183.0,97182.0,0.003]
[1746663358279,0.28194361,97183.0,97182.0,0.002]
[1746663358421,0.28794361,97183.0,97182.0,0.003]
[1746663358940,0.28694361,97183.0,97182.0,0.001]
[1746663359141,0.29294361,97183.0,97182.0,0.002]
[1746663359803,0.28694361,97183.0,97182.0,0.001]
[1746663360013,0.29294361,97183.0,97182.0,0.002]
[1746663362638,0.27684361,97183.0,97182.0,0.002]
[1746663362837,0.26024361,97183.0,97182.0,0.002]
[1746663363415,0.27564361,97183.0,97182.0,0.002]
[1746663363592,0.26024361,97183.0,97182.0,0.002]
[1746663364139,0.26024361,97183.0,97182.0,0.00045049]
[1746663364570,0.15335347,97183.0,97182.0,0.01971566]
[1746663364906,0.155926,97183.0,97182.0,0.01971566]
[1746663365099,0.15335347,97183.0,97182.0,0.01971566]
[1746663365689,0.18802592,97183.0,97182.0,0.01971566]
[1746663365870,0.18802592,97183.0,97182.0,0.01926517]
[1746663365871,0.18202592,97183.0,97182.0,0.01926517]
[1746663366451,0.18102592,97183.0,97182.0,0.001]
[1746663366968,0.16532592,97183.0,97182.0,0.001]
[1746663367187,0.14892592,97183.0,97182.0,0.001]
[1746663368027,0.15492592,97183.0,97182.0,0.002]
[1746663368859,0.15492592,97183.0,97182.0,0.02126517]
[1746663371467,0.18522592,97183.0,97182.0,0.02126517]
[1746663378387,0.29211606,97183.0,97182.0,0.02126517]
[1746663378548,0.28954361,97183.0,97182.0,0.02126517]
[1746663380082,0.28954361,97183.0,97182.0,0.002]
[1746663381006,0.28454361,97183.0,97182.0,0.001]
[1746663381212,0.23761001,97177.0,97176.0,0.04855795]
[1746663381384,0.34450015,97177.0,97176.0,0.06783905]
[1746663382634,0.34450015,97177.0,97176.0,0.0192811]
[1746663382859,0.34550015,97177.0,97176.0,0.0202811]
[1746663383268,0.34650015,97177.0,97176.0,0.0202811]
[1746663390521,0.31470015,97177.0,97176.0,0.0202811]
[1746663390720,0.20781001,97177.0,97176.0,0.0202811]
[1746663390899,0.002,97177.0,97176.0,0.0525811]
[1746663391299,0.002,97177.0,97176.0,0.05548815]
[1746663391739,0.002,97177.0,97176.0,0.26130028]
[1746663393175,0.002,97177.0,97176.0,0.30775342]
[1746663393389,0.001,97177.0,97176.0,0.30675342]
[1746663393734,0.002,97177.0,97176.0,0.31075342]
[1746663394220,0.20579573,97184.0,97180.0,0.2160938]
[1746663394371,0.21608548,97184.0,97181.0,0.0155]
[1746663394574,0.21608548,97184.0,97182.0,0.0347811]
[1746663395183,0.21608548,97184.0,97183.0,0.02214461]
[1746663395991,0.21708548,97184.0,97183.0,0.02214461]
[1746663396367,0.21708548,97184.0,97183.0,0.02414461]
[1746663397395,0.21608548,97184.0,97183.0,0.02414461]
[1746663397608,0.21708548,97184.0,97183.0,0.07559775]
[1746663399018,0.21708548,97184.0,97183.0,0.07273424]
[1746663399743,0.23238548,97184.0,97183.0,0.07273424]
[1746663399946,0.24828548,97184.0,97183.0,0.07273424]
[1746663400149,0.21708548,97184.0,97183.0,0.07273424]
[1746663400565,0.21608548,97184.0,97183.0,0.06773424]
[1746663400762,0.21608548,97184.0,97183.0,0.06573424]
[1746663400974,0.21708548,97184.0,97183.0,0.06973424]
[1746663401575,0.21808548,97184.0,97183.0,0.07273424]
[1746663401829,0.32497562,97184.0,97183.0,0.0262811]
[1746663404479,0.35597562,97184.0,97183.0,0.0262811]
[1746663406588,0.35597562,97184.0,97183.0,0.0748072]
[1746663406768,0.35597562,97184.0,97183.0,0.12123738]
[1746663407720,0.32497562,97184.0,97183.0,0.12123738]
[1746663409772,0.35597562,97184.0,97183.0,0.12123738]
[1746663410981,0.35597562,97184.0,97183.0,0.07271128]
[1746663411287,0.35497562,97184.0,97183.0,0.06871128]
[1746663411471,0.35497562,97184.0,97183.0,0.06771128]
[1746663412007,0.35597562,97184.0,97183.0,0.07071128]
[1746663414237,0.34077562,97184.0,97183.0,0.0242811]
[1746663414743,0.29278887,97184.0,97183.0,0.0242811]
[1746663415567,0.18589873,97184.0,97183.0,0.0242811]
[1746663415716,0.18589873,97184.0,97183.0,0.10251128]
[1746663415717,0.002,97184.0,97183.0,0.10251128]
[1746663415934,0.20779519,97184.0,97183.0,0.10536706]
[1746663417155,0.20779519,97184.0,97183.0,0.10534822]
[1746663417795,0.20779519,97184.0,97183.0,0.10249244]
[1746663418763,0.20779519,97184.0,97183.0,0.07069244]
[1746663418964,0.34698533,97184.0,97183.0,0.07069244]
[1746663419178,0.31468533,97184.0,97183.0,0.07069244]
[1746663419636,0.34758533,97184.0,97183.0,0.07069244]
[1746663419969,0.31368533,97184.0,97183.0,0.06869244]
[1746663420394,0.31468533,97184.0,97183.0,0.07169244]
[1746663420876,0.32988533,97184.0,97183.0,0.07169244]
[1746663421320,0.32888533,97184.0,97183.0,0.06869244]
[1746663421517,0.32888533,97184.0,97183.0,0.07069244]
[1746663421740,0.32988533,97184.0,97183.0,0.07069244]
[1746663422145,0.34608533,97184.0,97183.0,0.07069244]
[1746663422726,0.34608533,97184.0,97183.0,0.02426226]
[1746663423761,0.70062618,97184.0,97183.0,0.02426226]
[1746663423947,0.70062618,97184.0,97183.0,0.005]
[1746663424327,0.73167649,97184.0,97183.0,0.005]
[1746663424954,0.73067649,97184.0,97183.0,0.003]
[1746663425306,0.73867649,97184.0,97183.0,0.004]
[1746663425629,0.73767649,97184.0,97183.0,0.001]
[1746663425981,0.74567649,97184.0,97183.0,0.001]
[1746663426138,0.71462618,97184.0,97183.0,0.001]
[1746663426344,0.70008533,97184.0,97183.0,0.001]
[1746663427449,1.38228533,97184.0,97183.0,0.001]
[1746663437064,1.02608533,97184.0,97183.0,0.001]
[1746663437297,1.01088533,97184.0,97183.0,0.001]
[1746663440353,1.00288533,97184.0,97183.0,0.001]
[1746663440884,0.20582272,97171.0,97170.0,0.0327]
[1746663441095,0.20582484,97170.0,97169.0,0.01925473]
[1746663441313,0.20582907,97168.0,97167.0,0.00013468]
[1746663441850,0.20582907,97168.0,97167.0,0.01937588]
[1746663442730,0.20682907,97168.0,97167.0,0.00313468]
[1746663442951,0.20782907,97168.0,97167.0,0.00713468]
[1746663443199,0.20782907,97168.0,97167.0,0.03793468]
[1746663443416,0.20782907,97168.0,97167.0,0.05717588]
[1746663444472,0.20782907,97168.0,97167.0,0.02637588]
[1746663446111,0.17563714,97168.0,97167.0,0.02637588]
[1746663446850,0.17563714,97168.0,97167.0,0.04237588]
[1746663447407,0.17563714,97168.0,97167.0,0.05747588]
[1746663449777,0.17563714,97168.0,97167.0,0.06709522]
[1746663450563,0.20782907,97168.0,97167.0,0.06709522]
[1746663450792,0.20782907,97168.0,97167.0,0.06959056]
[1746663453240,0.20782907,97168.0,97167.0,0.11599176]
[1746663454276,0.20782907,97168.0,97167.0,0.11349642]
[1746663455784,0.20782907,97168.0,97167.0,0.11597118]
[1746663455980,0.20782907,97168.0,97167.0,0.08487118]
[1746663456304,0.20782907,97168.0,97167.0,0.08239642]
[1746663458413,0.20586297,97152.0,97150.0,0.002]
[1746663458607,0.20586509,97151.0,97150.0,0.00207863]
[1746663460787,0.20686509,97151.0,97150.0,0.00407863]
[1746663461040,0.001,97152.0,97150.0,0.00207863]
[1746663461191,0.20686509,97151.0,97150.0,0.01957863]
[1746663461591,0.20786509,97151.0,97150.0,0.01957863]
[1746663461965,0.20686509,97151.0,97150.0,0.01957863]
[1746663462995,0.001,97151.0,97150.0,0.01957863]
[1746663464760,0.002,97151.0,97150.0,0.01957863]
[1746663465178,0.002,97151.0,97150.0,0.00407863]
[1746663465565,0.002,97151.0,97150.0,0.20994584]
[1746663466302,0.21615564,97154.0,97151.0,0.20586505]
[1746663467352,0.21715564,97154.0,97151.0,0.20786505]
[1746663468083,0.21715564,97154.0,97151.0,0.002]
[1746663468284,0.21815199,97154.0,97151.0,0.20786422]
[1746663468479,0.01229293,97154.0,97152.0,0.20586231]
[1746663469381,0.01229293,97154.0,97153.0,0.00227907]
[1746663469986,0.001,97154.0,97153.0,0.34227907]
[1746663470122,0.2058606,97155.0,97153.0,0.34227907]
[1746663470486,0.001,97154.0,97153.0,0.34227907]
[1746663470679,0.002,97154.0,97153.0,0.34227907]
[1746663470904,0.2058606,97155.0,97153.0,0.20813986]
[1746663471080,0.002,97154.0,97153.0,0.23142123]
[1746663471669,0.001,97154.0,97153.0,0.24106167]
[1746663472192,0.001,97154.0,97153.0,0.23142123]
[1746663474378,0.002,97154.0,97153.0,0.23142123]
[1746663475769,0.002,97154.0,97153.0,0.26282123]
[1746663476924,0.002,97154.0,97153.0,0.27245915]
[1746663477353,0.002,97154.0,97153.0,0.31894217]
[1746663477557,0.002,97154.0,97153.0,1.15894217]
[1746663478774,0.002,97154.0,97153.0,1.14930425]
[1746663478977,0.002,97154.0,97153.0,1.15894116]
[1746663479915,0.002,97154.0,97153.0,1.14930425]
[1746663481304,0.002,97154.0,97153.0,1.2114022]
[1746663482062,0.01029071,97175.0,97172.0,0.20581924]
[1746663482421,0.01029071,97175.0,97173.0,0.00222105]
[1746663482932,0.21610496,97175.0,97174.0,0.01928137]
[1746663483134,0.21710496,97175.0,97174.0,0.01928137]
[1746663483384,0.21810496,97175.0,97174.0,0.01928137]
[1746663483584,0.21710496,97175.0,97174.0,0.02150242]
[1746663483716,0.21810496,97175.0,97174.0,0.02150242]
[1746663483911,0.21610496,97175.0,97174.0,0.02150242]
[1746663484118,0.21710496,97175.0,97174.0,0.02150242]
[1746663484322,0.21810496,97175.0,97174.0,0.02250242]
[1746663484788,0.21810496,97175.0,97174.0,0.02028137]
[1746663484964,0.23420496,97175.0,97174.0,0.02028137]
[1746663486775,0.23420496,97175.0,97174.0,0.06676439]
[1746663487672,0.19620839,97175.0,97174.0,0.06676439]
[1746663490569,0.21150839,97175.0,97174.0,0.06676439]
[1746663495649,0.19620839,97175.0,97174.0,0.06676439]
[1746663496275,0.002,97175.0,97174.0,0.06676439]
[1746663496712,0.002,97175.0,97174.0,0.06897447]
[1746663500555,0.20781425,97175.0,97174.0,0.06897447]
[1746663501248,0.20781425,97175.0,97174.0,0.0496931]
[1746663501455,0.20781425,97175.0,97174.0,0.06896]
[1746663503113,0.002,97175.0,97174.0,0.27477637]
[1746663503336,0.002,97175.0,97174.0,0.29127637]
[1746663503526,0.002,97175.0,97174.0,0.30637637]
[1746663504269,0.001,97175.0,97174.0,0.30637637]
[1746663504426,0.001,97175.0,97174.0,0.31601405]
[1746663504640,0.002,97175.0,97174.0,0.31801405]
[1746663504840,0.002,97175.0,97174.0,0.81801405]
[1746663505042,0.20577887,97192.0,97174.0,0.81801405]
[1746663505043,0.01028817,97199.0,97194.0,0.20577401]
[1746663505241,0.01028838,97197.0,97194.0,0.01729453]
[1746663505441,0.03081443,97206.0,97194.0,0.02693221]
[1746663505639,0.01028785,97202.0,97194.0,0.02693221]
[1746663505869,0.21604524,97202.0,97194.0,0.06899839]
[1746663506286,0.00344916,97195.0,97194.0,0.07099839]
[1746663506495,0.00444916,97195.0,97194.0,0.07399839]
[1746663506947,0.00444916,97195.0,97194.0,0.12048141]
[1746663508603,0.21605062,97200.0,97196.0,0.01028848]
[1746663508900,0.21617999,97200.0,97197.0,0.00213912]
[1746663509106,0.21617999,97200.0,97197.0,0.0117768]
[1746663509329,0.21617999,97200.0,97198.0,0.0192669]
[1746663509755,0.21617999,97200.0,97197.0,0.0117768]
[1746663509756,0.01141743,97200.0,97199.0,0.0192669]
[1746663509976,0.01141743,97200.0,97199.0,0.02140602]
[1746663510197,0.01241743,97200.0,97199.0,0.02140602]
[1746663510626,0.00212937,97200.0,97199.0,0.02140602]
[1746663510872,0.01028806,97200.0,97199.0,0.02140602]
[1746663511498,0.01128806,97200.0,97199.0,0.02140602]
[1746663511725,0.01228806,97200.0,97199.0,0.02140602]
[1746663511896,0.01128806,97200.0,97199.0,0.02140602]
[1746663512096,0.01028806,97200.0,97199.0,0.02921085]
[1746663512401,0.01128806,97200.0,97199.0,0.03221085]
[1746663512606,0.01128806,97200.0,97199.0,0.08069387]
[1746663512607,0.01228806,97200.0,97199.0,0.08069387]
[1746663513558,0.21804937,97200.0,97199.0,0.08069387]
[1746663515439,0.002,97200.0,97199.0,0.2864573]
[1746663515868,0.002,97200.0,97199.0,0.08069387]
[1746663516771,0.20776131,97200.0,97199.0,0.08069387]
[1746663517398,0.20776131,97200.0,97199.0,0.12910511]
[1746663518240,0.20676131,97200.0,97199.0,0.12610511]
[1746663518470,0.20576131,97200.0,97199.0,0.12410511]
[1746663518733,0.20776131,97200.0,97199.0,0.13110511]
[1746663519591,0.002,97200.0,97199.0,0.33686854]
[1746663520242,0.002,97200.0,97199.0,0.2884573]
[1746663528149,0.002,97200.0,97199.0,0.29806738]
[1746663531088,0.18586441,97204.0,97201.0,0.20575825]
[1746663531242,0.18586441,97204.0,97202.0,0.0020369]
[1746663531437,0.20575308,97204.0,97202.0,0.20779206]
[1746663531680,0.20575308,97204.0,97203.0,0.0192669]
[1746663531884,0.20575308,97204.0,97203.0,0.02887698]
[1746663532079,0.20575308,97204.0,97203.0,0.03091388]
[1746663532419,0.001,97204.0,97203.0,0.03091388]
[1746663532566,0.23113966,97205.0,97203.0,0.03091388]
[1746663532890,0.001,97204.0,97203.0,0.03091388]
[1746663533543,0.001,97204.0,97203.0,0.23666884]
[1746663533714,0.001,97204.0,97203.0,0.60926884]
[1746663534168,0.001,97204.0,97203.0,0.59596884]
[1746663534314,0.001,97204.0,97203.0,1.09596884]
[1746663534519,0.020527,97206.0,97205.0,0.54575073]
[1746663534765,0.020527,97206.0,97205.0,0.56205073]
[1746663534957,0.020527,97206.0,97205.0,0.56704814]
[1746663535156,0.020527,97206.0,97205.0,0.57665822]
[1746663535535,0.021527,97206.0,97205.0,0.58265822]
[1746663536124,0.021527,97206.0,97205.0,0.57304814]
[1746663537306,0.022527,97206.0,97205.0,0.57904814]
[1746663537439,0.022527,97206.0,97205.0,0.62553116]
[1746663537875,0.20517055,97214.0,97211.0,0.2057366]
[1746663538081,0.0314,97212.0,97211.0,0.5457366]
[1746663538406,0.0314,97212.0,97211.0,0.54773976]
[1746663538568,0.0314,97212.0,97211.0,0.56700666]
[1746663539032,0.0314,97212.0,97211.0,0.36127006]
[1746663539180,0.0314,97212.0,97211.0,0.57100809]
[1746663540092,0.0151,97212.0,97211.0,0.57600809]